[Event "EYCC Open-U10 2019"]
[Site "Bratislava"]
[Date "2019.08.10"]
[Round "9.32"]
[White "Dyachuk, Artem"]
[Black "Kote, Aleks"]
[Result "1-0"]
[ECO "E73"]
[WhiteElo "1538"]
[BlackElo "1257"]
[Annotator "NA RC"]
[PlyCount "63"]
[EventDate "2019.08.02"]
[EventType "swiss"]
[EventCountry "SVK"]
[SourceTitle "playchess.com"]
[Source "ChessBase"]
[SourceQuality "1"]
[TimeControl "40/5400+30:1800+30"]

1. d4 Nf6 2. c4 {[%emt 0:00:24]} g6 {[%emt 0:00:39]} 3. Nc3 {[%emt 0:00:08]} Bg7 {[%emt 0:00:46]} 4. e4 {[%emt 0:00:14]} d6 {[%emt 0:00:32]} 5. Bg5 {[%emt 0:00:15]} O-O {[%emt 0:00:31]} 6. Be2 {[%emt 0:00:08]} Nbd7 {[%emt 0:01:08]} 7. Nf3 {[%emt 0:00:30]} c5 {[%emt 0:01:19]} 8. d5 {[%emt 0:05:05]} Ng4 {[%emt 0:01:12]} 9. O-O {[%emt 0:03:56]} Nge5 {[%emt 0:00:45]} 10. Nxe5 {[%emt 0:01:39]} Nxe5 {[%emt 0:00:24]} 11. f4 {[%emt 0:03:18]} Nd7 {[%emt 0:00:45]} 12. Bh4 {[%emt 0:00:29]} Qb6 {[%emt 0:01:16]} 13. Qc2 {[%emt 0:02:25]} Re8 {[%emt 0:01:49]} 14. Bf2 {[%emt 0:03:27]} Nf8 {[%emt 0:00:35]} 15. Bf3 {[%emt 0:02:20]} f5 {[%emt 0:01:29]} 16. exf5 {[%emt 0:12:00]} Bxf5 {[%emt 0:00:13]} 17. Be4 {[%emt 0:04:09]} Bxe4 {[%emt 0:01:53]} 18. Nxe4 {[%emt 0:00:34]} Rab8 {[%emt 0:01:37]} 19. Rab1 {[%emt 0:04:45]} Qa6 {[%emt 0:01:07]} 20. a3 {[%emt 0:01:55]} b5 {[%emt 0:00:28]} 21. Nd2 {[%emt 0:14:19]} b4 {[%emt 0:02:16]} 22. axb4 {[%emt 0:05:02]} Rxb4 {[%emt 0:00:21]} 23. b3 {[%emt 0:00:59]} Nd7 {[%emt 0:03:12]} 24. Qe4 {[%emt 0:01:55]} Nf6 {[%emt 0:00:56]} 25. Qe6+ {[%emt 0:00:13]} Kh8 {[%emt 0:00:15]} 26. Bxc5 {[%emt 0:00:58]} Rb7 {[%emt 0:00:33]} 27. Bd4 {[%emt 0:00:54]} Nh5 {[%emt 0:01:25]} 28. Be3 {[%emt 0:05:19]} Qa2 {[%emt 0:01:51]} 29. Ne4 {[%emt 0:02:20]} Bf6 {[%emt 0:02:17]} 30. Nxf6 {[%emt 0:04:45]} Nxf6 {[%emt 0:00:14]} 31. Bd4 {[%emt 0:00:08]} Rf8 {[%emt 0:00:50]} 32. g4 {[%emt 0:01:00]} 1-0

[Event "EYCC Open-U10 2019"]
[Site "Bratislava"]
[Date "2019.08.10"]
[Round "9.33"]
[White "Cruceru-Uceanu, Tudor-Mihai"]
[Black "Perossa, Nicolas"]
[Result "0-1"]
[ECO "C05"]
[WhiteElo "1234"]
[BlackElo "1661"]
[Annotator "NA RC"]
[PlyCount "102"]
[EventDate "2019.08.02"]
[EventType "swiss"]
[EventCountry "SVK"]
[SourceTitle "playchess.com"]
[Source "ChessBase"]
[SourceQuality "1"]
[TimeControl "40/5400+30:1800+30"]

1. e4 e6 2. d4 d5 3. Nd2 Nf6 4. e5 Nfd7 5. Bd3 c5 6. c3 Nc6 7. Ne2 Qb6 8. Nf3 f6 9. exf6 Nxf6 10. O-O Bd6 11. Ng3 cxd4 12. cxd4 Bd7 13. Re1 O-O-O 14. Bf1 Kb8 15. a4 h6 16. Be3 g5 17. Ne5 Rhf8 18. Qd2 Bb4 19. Nxc6+ Bxc6 20. a5 Bxd2 21. axb6 Bxe1 22. bxa7+ Ka8 23. Rxe1 Kxa7 24. b4 Bd7 25. f4 Ng4 26. Bd2 gxf4 27. Nh5 Rc8 28. Bxf4 Be8 29. Bd6 Bxh5 30. Bxf8 Rxf8 31. Rxe6 Rf6 32. Re7 Nf2 33. h3 Ne4 34. g4 Bg6 35. Bg2 Rb6 36. h4 Nc3 37. h5 Be4 38. Rg7 Ne2+ 39. Kh2 Bxg2 40. Kxg2 Nxd4 41. Rg6 Rxg6 42. hxg6 Ne6 43. Kg3 Kb6 44. Kh4 d4 45. Kg3 Kb5 46. Kf3 Kc4 47. Ke4 d3 48. Ke5 d2 49. Kxe6 d1=Q 50. Kf5 Qd8 51. g7 Qe8 0-1

[Event "EYCC Open-U10 2019"]
[Site "Bratislava"]
[Date "2019.08.10"]
[Round "9.34"]
[White "Khoo-Thwe, Louis"]
[Black "Batozhargalov, Erdem"]
[Result "1-0"]
[ECO "C50"]
[WhiteElo "1746"]
[BlackElo "1080"]
[Annotator "NA RC"]
[PlyCount "99"]
[EventDate "2019.08.02"]
[EventType "swiss"]
[EventCountry "SVK"]
[SourceTitle "playchess.com"]
[Source "ChessBase"]
[SourceQuality "1"]
[TimeControl "40/5400+30:1800+30"]

1. e4 {[%emt 0:00:00]} e5 {[%emt 0:00:00]} 2. Nf3 {[%emt 0:00:00]} Nc6 {[%emt 0:00:00]} 3. Bc4 {[%emt 0:00:00]} Nf6 {[%emt 0:00:00]} 4. d3 {[%emt 0:00:00]} Bc5 {[%emt 0:00:04]} 5. O-O {[%emt 0:00:06]} O-O {[%emt 0:00:04]} 6. c3 {[%emt 0:00:08]} a6 {[%emt 0:00:13]} 7. Nbd2 {[%emt 0:00:11]} d6 {[%emt 0:00:13]} 8. Re1 {[%emt 0:00:10]} Ba7 {[%emt 0:00:16]} 9. Nf1 {[%emt 0:00:16]} Ng4 {[%emt 0:00:08]} 10. Re2 {[%emt 0:00:25]} Kh8 {[%emt 0:00:05]} 11. h3 {[%emt 0:00:06]} f5 {[%emt 0:00:34]} 12. hxg4 {[%emt 0:03:47]} fxg4 {[%emt 0:00:10]} 13. N3h2 {[%emt 0:01:50]} Qf6 {[%emt 0:08:54]} 14. Be3 {[%emt 0:01:52]} Bxe3 {[%emt 0:01:45]} 15. Nxe3 {[%emt 0:00:23]} h5 {[%emt 0:00:49]} 16. Nd5 {[%emt 0:00:20]} Qd8 {[%emt 0:00:50]} 17. Re3 {[%emt 0:02:24]} Na5 {[%emt 0:02:00]} 18. Qd2 {[%emt 0:07:22]} h4 {[%emt 0:03:05]} 19. g3 {[%emt 0:03:02]} c6 {[%emt 0:01:16]} 20. Nb4 {[%emt 0:00:15]} h3 {[%emt 0:06:03]} 21. Qe2 {[%emt 0:02:28]} Qg5 {[%emt 0:05:29]} 22. d4 {[%emt 0:02:10]} b5 {[%emt 0:06:12]} 23. Bb3 {[%emt 0:00:35]} c5 {[%emt 0:02:02]} 24. dxc5 {[%emt 0:00:15]} dxc5 {[%emt 0:00:33]} 25. Nd5 {[%emt 0:00:08]} c4 {[%emt 0:02:13]} 26. Bd1 {[%emt 0:00:43]} Qh6 {[%emt 0:01:46]} 27. b4 {[%emt 0:01:49]} Nc6 {[%emt 0:01:41]} 28. a4 {[%emt 0:01:02]} Rb8 {[%emt 0:02:18]} 29. axb5 {[%emt 0:02:00]} axb5 {[%emt 0:00:10]} 30. Qd2 {[%emt 0:00:12]} Qg6 {[%emt 0:00:52]} 31. Ra2 {[%emt 0:00:26]} Be6 {[%emt 0:05:47]} 32. Ra6 {[%emt 0:00:54]} Rbc8 {[%emt 0:01:34]} 33. Rxc6 {[%emt 0:00:26]} Rxc6 {[%emt 0:01:02]} 34. Ne7 {[%emt 0:00:07]} Qe8 {[%emt 0:00:19]} 35. Nxc6 {[%emt 0:00:07]} Qxc6 {[%emt 0:00:11]} 36. Bxg4 {[%emt 0:00:24]} Bxg4 {[%emt 0:00:47]} 37. Nxg4 {[%emt 0:00:07]} Qe6 {[%emt 0:00:39]} 38. f3 {[%emt 0:00:38]} Ra8 {[%emt 0:01:35]} 39. Re1 {[%emt 0:00:25]} Rf8 {[%emt 0:00:25]} 40. Rf1 {[%emt 0:00:00]} Qg6 {[%emt 0:00:00]} 41. Kh2 {[%emt 0:01:55]} Qh5 {[%emt 0:02:43]} 42. Qd5 {[%emt 0:01:55]} Re8 {[%emt 0:00:59]} 43. Qxb5 {[%emt 0:00:57]} Rd8 {[%emt 0:00:28]} 44. Rf2 {[%emt 0:00:17]} Rd1 {[%emt 0:02:06]} 45. Ra2 {[%emt 0:01:18]} Qg5 {[%emt 0:00:39]} 46. Qxe5 {[%emt 0:01:39]} Qd8 {[%emt 0:02:33]} 47. Qf4 {[%emt 0:01:23]} Re1 {[%emt 0:02:07]} 48. Ne5 {[%emt 0:00:24]} Qd1 49. Qh4+ {[%emt 0:00:02]} Kg8 {[%emt 0:01:17]} 50. Ra8+ 1-0

[Event "EYCC Open-U10 2019"]
[Site "Bratislava"]
[Date "2019.08.10"]
[Round "9.35"]
[White "Foldes, Marton Gabor"]
[Black "Qasem, Muhamad Mody"]
[Result "1-0"]
[ECO "B33"]
[WhiteElo "1803"]
[BlackElo "1400"]
[Annotator "NA RC"]
[PlyCount "67"]
[EventDate "2019.08.02"]
[EventType "swiss"]
[EventCountry "SVK"]
[SourceTitle "playchess.com"]
[Source "ChessBase"]
[SourceQuality "1"]
[TimeControl "40/5400+30:1800+30"]

1. e4 {[%emt 0:00:00]} c5 {[%emt 0:00:00]} 2. Nf3 {[%emt 0:00:00]} e6 {[%emt 0:00:48]} 3. d4 {[%emt 0:00:00]} cxd4 {[%emt 0:01:01]} 4. Nxd4 {[%emt 0:00:06]} Nf6 {[%emt 0:01:02]} 5. Nc3 {[%emt 0:00:33]} Nc6 {[%emt 0:01:21]} 6. Ndb5 {[%emt 0:00:36]} d6 {[%emt 0:02:05]} 7. Bf4 {[%emt 0:00:25]} e5 {[%emt 0:01:03]} 8. Bg5 {[%emt 0:00:16]} a6 {[%emt 0:01:14]} 9. Na3 {[%emt 0:00:17]} b5 {[%emt 0:02:10]} 10. Nd5 {[%emt 0:00:31]} Be7 {[%emt 0:03:41]} 11. Bxf6 {[%emt 0:00:38]} Bxf6 {[%emt 0:01:36]} 12. c4 {[%emt 0:01:12]} b4 {[%emt 0:03:04]} 13. Nc2 {[%emt 0:00:24]} a5 {[%emt 0:01:33]} 14. g3 {[%emt 0:00:41]} O-O {[%emt 0:06:48]} 15. Bg2 {[%emt 0:00:46]} Bg5 {[%emt 0:07:58]} 16. O-O {[%emt 0:01:17]} Be6 {[%emt 0:02:51]} 17. Qd3 {[%emt 0:11:38]} f5 {[%emt 0:06:08]} 18. f4 {[%emt 0:20:08]} Bh6 {[%emt 0:08:35]} 19. Nde3 {[%emt 0:09:58]} fxe4 {[%emt 0:09:20]} 20. Bxe4 {[%emt 0:10:50]} Rc8 {[%emt 0:02:55]} 21. f5 {[%emt 0:08:01]} Bxe3+ {[%emt 0:02:46]} 22. Nxe3 {[%emt 0:00:24]} Bf7 {[%emt 0:01:46]} 23. b3 {[%emt 0:07:45]} Bh5 {[%emt 0:03:23]} 24. Bxc6 {[%emt 0:00:37]} Qg5 {[%emt 0:04:53]} 25. Ng2 {[%emt 0:05:25]} Rf6 {[%emt 0:03:48]} 26. Bd5+ {[%emt 0:04:51]} Kh8 {[%emt 0:00:37]} 27. h4 {[%emt 0:00:29]} Qh6 {[%emt 0:02:25]} 28. Qe3 {[%emt 0:01:30]} Qxe3+ {[%emt 0:01:09]} 29. Nxe3 {[%emt 0:00:01]} Be2 {[%emt 0:01:31]} 30. Rf2 {[%emt 0:00:22]} Bd3 {[%emt 0:00:25]} 31. Rd1 {[%emt 0:01:19]} e4 {[%emt 0:00:07]} 32. Rf4 {[%emt 0:00:54]} Re8 {[%emt 0:00:43]} 33. Bc6 {[%emt 0:00:53]} Ref8 {[%emt 0:02:10]} 34. Bxe4 1-0

[Event "EYCC Open-U10 2019"]
[Site "Bratislava"]
[Date "2019.08.10"]
[Round "9.36"]
[White "Tolmacevs, Artjoms"]
[Black "Hvozdz, Aliaksandr"]
[Result "1/2-1/2"]
[ECO "B01"]
[WhiteElo "1583"]
[BlackElo "1699"]
[Annotator "NA RC"]
[PlyCount "140"]
[EventDate "2019.08.02"]
[EventType "swiss"]
[EventCountry "SVK"]
[SourceTitle "playchess.com"]
[Source "ChessBase"]
[SourceQuality "1"]
[TimeControl "40/5400+30:1800+30"]

1. e4 {[%emt 0:00:00]} d5 {[%emt 0:00:00]} 2. exd5 {[%emt 0:00:00]} Qxd5 {[%emt 0:00:00]} 3. Nc3 {[%emt 0:00:00]} Qd6 {[%emt 0:00:00]} 4. d4 {[%emt 0:01:38]} Nf6 {[%emt 0:00:00]} 5. Bd3 {[%emt 0:01:28]} c6 {[%emt 0:00:37]} 6. Nge2 {[%emt 0:01:32]} Bg4 {[%emt 0:04:03]} 7. f3 {[%emt 0:01:30]} Bh5 {[%emt 0:00:46]} 8. Bf4 {[%emt 0:02:28]} Qd8 {[%emt 0:00:46]} 9. Qd2 {[%emt 0:02:33]} e6 {[%emt 0:01:13]} 10. O-O-O {[%emt 0:03:48]} Bb4 {[%emt 0:02:21]} 11. Qe3 {[%emt 0:03:59]} Bg6 {[%emt 0:05:36]} 12. g4 {[%emt 0:02:42]} Bd6 {[%emt 0:08:38]} 13. Bxd6 {[%emt 0:01:55]} Qxd6 {[%emt 0:00:54]} 14. Ne4 {[%emt 0:03:38]} Qe7 {[%emt 0:04:56]} 15. h4 {[%emt 0:03:07]} Nbd7 {[%emt 0:01:44]} 16. h5 {[%emt 0:02:14]} Bxe4 {[%emt 0:00:10]} 17. Bxe4 {[%emt 0:00:15]} Nb6 {[%emt 0:04:38]} 18. Qb3 {[%emt 0:04:51]} O-O-O {[%emt 0:07:17]} 19. Nc3 {[%emt 0:04:20]} Nfd5 {[%emt 0:05:53]} 20. Nxd5 {[%emt 0:00:31]} cxd5 {[%emt 0:03:37]} 21. Bd3 {[%emt 0:00:22]} Kb8 {[%emt 0:02:53]} 22. Kb1 {[%emt 0:00:46]} Rc8 {[%emt 0:01:32]} 23. f4 {[%emt 0:02:45]} Nc4 {[%emt 0:05:00]} 24. Bxc4 {[%emt 0:00:08]} Rxc4 {[%emt 0:00:30]} 25. c3 {[%emt 0:01:17]} Rhc8 {[%emt 0:03:46]} 26. Qc2 {[%emt 0:05:25]} Qb4 {[%emt 0:03:20]} 27. Qb3 {[%emt 0:02:54]} Qa5 {[%emt 0:00:41]} 28. f5 {[%emt 0:02:24]} R8c6 {[%emt 0:01:27]} 29. fxe6 {[%emt 0:01:03]} Rxe6 {[%emt 0:00:45]} 30. Rde1 {[%emt 0:07:16]} Rb6 {[%emt 0:04:57]} 31. Re8+ {[%emt 0:00:07]} Kc7 {[%emt 0:02:31]} 32. Qc2 {[%emt 0:00:16]} Qxc3 {[%emt 0:02:44]} 33. Qxc3 {[%emt 0:01:23]} Rxc3 {[%emt 0:00:09]} 34. Re7+ {[%emt 0:00:46]} Kd8 {[%emt 0:01:08]} 35. Rxf7 {[%emt 0:00:37]} Re3 {[%emt 0:00:53]} 36. Rc1 {[%emt 0:13:29]} Re2 {[%emt 0:01:29]} 37. b3 {[%emt 0:00:08]} Ra6 {[%emt 0:01:25]} 38. a4 {[%emt 0:04:05]} Rb6 {[%emt 0:01:08]} 39. Rc3 {[%emt 0:00:09]} Re7 {[%emt 0:00:10]} 40. Rxe7 {[%emt 0:00:00]} Kxe7 {[%emt 0:00:00]} 41. Kc2 {[%emt 0:01:18]} Kf6 {[%emt 0:05:28]} 42. Rf3+ {[%emt 0:00:23]} Ke7 {[%emt 0:02:54]} 43. Rf5 {[%emt 0:01:06]} Rd6 {[%emt 0:00:38]} 44. Re5+ {[%emt 0:04:50]} Kd7 {[%emt 0:00:17]} 45. g5 {[%emt 0:00:42]} Kc6 {[%emt 0:01:58]} 46. Re7 {[%emt 0:03:10]} Rd7 {[%emt 0:00:09]} 47. Re6+ {[%emt 0:00:41]} Kc7 {[%emt 0:02:38]} 48. Kc3 {[%emt 0:01:06]} Rd6 {[%emt 0:01:17]} 49. Re7+ {[%emt 0:00:26]} Rd7 {[%emt 0:00:06]} 50. Re5 {[%emt 0:00:26]} a5 {[%emt 0:00:44]} 51. Kd3 {[%emt 0:03:11]} Rd6 {[%emt 0:01:50]} 52. Ke3 {[%emt 0:00:53]} g6 {[%emt 0:01:25]} 53. hxg6 {[%emt 0:04:16]} hxg6 {[%emt 0:01:29]} 54. Re7+ {[%emt 0:00:06]} Rd7 {[%emt 0:01:48]} 55. Re6 {[%emt 0:01:06]} Rd6 {[%emt 0:00:05]} 56. Re8 {[%emt 0:00:06]} Rb6 {[%emt 0:00:17]} 57. Kf4 {[%emt 0:02:30]} Rxb3 {[%emt 0:00:44]} 58. Re6 {[%emt 0:00:09]} Rb6 {[%emt 0:01:39]} 59. Rxb6 {[%emt 0:01:37]} Kxb6 {[%emt 0:00:45]} 60. Ke5 {[%emt 0:00:04]} Kc6 {[%emt 0:00:26]} 61. Kf6 {[%emt 0:00:14]} b5 {[%emt 0:00:22]} 62. axb5+ {[%emt 0:00:06]} Kxb5 {[%emt 0:00:08]} 63. Kxg6 {[%emt 0:00:19]} a4 {[%emt 0:00:31]} 64. Kf7 {[%emt 0:00:12]} a3 {[%emt 0:00:13]} 65. g6 {[%emt 0:00:04]} a2 {[%emt 0:00:24]} 66. g7 {[%emt 0:00:05]} a1=Q {[%emt 0:00:07]} 67. g8=Q {[%emt 0:00:08]} Qxd4 {[%emt 0:00:22]} 68. Qb8+ {[%emt 0:00:12]} Kc4 {[%emt 0:00:34]} 69. Qc8+ {[%emt 0:00:25]} Qc5 {[%emt 0:00:37]} 70. Qa6+ {[%emt 0:00:25]} Kc3 1/2-1/2

[Event "EYCC Open-U10 2019"]
[Site "Bratislava"]
[Date "2019.08.10"]
[Round "9.37"]
[White "Deladerriere, Apollo"]
[Black "Haubold, Christian Lucas"]
[Result "1-0"]
[ECO "C44"]
[WhiteElo "1696"]
[BlackElo "1429"]
[Annotator "NA RC"]
[PlyCount "55"]
[EventDate "2019.08.02"]
[EventType "swiss"]
[EventCountry "SVK"]
[SourceTitle "playchess.com"]
[Source "ChessBase"]
[SourceQuality "1"]
[TimeControl "40/5400+30:1800+30"]

1. e4 {[%emt 0:00:00]} e5 {[%emt 0:00:00]} 2. Nf3 {[%emt 0:00:00]} Nc6 {[%emt 0:00:00]} 3. d4 {[%emt 0:00:00]} exd4 {[%emt 0:00:06]} 4. Nxd4 {[%emt 0:00:00]} Qf6 {[%emt 0:00:25]} 5. Nxc6 {[%emt 0:00:37]} dxc6 {[%emt 0:05:53]} 6. Bc4 {[%emt 0:02:11]} Bc5 {[%emt 0:00:53]} 7. O-O {[%emt 0:00:12]} Ne7 {[%emt 0:00:31]} 8. Be3 {[%emt 0:06:39]} Bb6 {[%emt 0:06:42]} 9. Nc3 {[%emt 0:02:20]} O-O {[%emt 0:00:33]} 10. Bxb6 {[%emt 0:00:26]} cxb6 {[%emt 0:01:31]} 11. Qe2 {[%emt 0:17:03]} Ng6 {[%emt 0:07:23]} 12. a3 {[%emt 0:06:51]} Ne5 {[%emt 0:01:08]} 13. Bb3 {[%emt 0:00:53]} Bg4 {[%emt 0:02:17]} 14. f3 {[%emt 0:00:28]} Be6 {[%emt 0:02:07]} 15. f4 {[%emt 0:04:29]} Bxb3 {[%emt 0:03:48]} 16. fxe5 {[%emt 0:00:54]} Qxe5 {[%emt 0:04:22]} 17. cxb3 {[%emt 0:00:07]} Qe6 {[%emt 0:00:14]} 18. Qc4 {[%emt 0:00:40]} Qh6 {[%emt 0:01:45]} 19. Rf3 {[%emt 0:01:29]} b5 {[%emt 0:00:46]} 20. Qe2 {[%emt 0:01:19]} Qe6 21. Raf1 {[%emt 0:02:53]} Qxb3 {[%emt 0:04:48]} 22. Nd5 {[%emt 0:00:30]} Qa2 {[%emt 0:00:14]} 23. Qf2 {[%emt 0:10:33]} f6 {[%emt 0:02:15]} 24. Ne7+ {[%emt 0:00:22]} Kh8 {[%emt 0:01:19]} 25. Rh3 {[%emt 0:01:29]} Qf7 {[%emt 0:00:47]} 26. Rxh7+ {[%emt 0:00:25]} Kxh7 {[%emt 0:00:06]} 27. Qh4+ {[%emt 0:00:05]} Qh5 {[%emt 0:00:04]} 28. Qxh5# {[%emt 0:00:02]} 1-0

[Event "EYCC Open-U10 2019"]
[Site "Bratislava"]
[Date "2019.08.10"]
[Round "9.38"]
[White "Torosyan, Bagrat"]
[Black "Sava, Robert-Gabriel"]
[Result "0-1"]
[ECO "B24"]
[WhiteElo "1586"]
[BlackElo "1292"]
[Annotator "NA RC"]
[PlyCount "96"]
[EventDate "2019.08.02"]
[EventType "swiss"]
[EventCountry "SVK"]
[SourceTitle "playchess.com"]
[Source "ChessBase"]
[SourceQuality "1"]
[TimeControl "40/5400+30:1800+30"]

1. e4 {[%emt 0:00:00]} c5 {[%emt 0:00:00]} 2. Nc3 {[%emt 0:00:00]} Nc6 {[%emt 0:00:00]} 3. g3 {[%emt 0:00:00]} g6 {[%emt 0:00:00]} 4. Bg2 {[%emt 0:00:01]} Bg7 {[%emt 0:00:05]} 5. d3 {[%emt 0:00:07]} Nf6 {[%emt 0:01:10]} 6. f4 {[%emt 0:00:46]} O-O {[%emt 0:01:26]} 7. Nge2 {[%emt 0:00:28]} e6 {[%emt 0:01:17]} 8. O-O {[%emt 0:00:09]} d5 {[%emt 0:01:57]} 9. e5 {[%emt 0:01:05]} Nd7 {[%emt 0:00:52]} 10. Bh3 {[%emt 0:01:40]} Re8 {[%emt 0:02:42]} 11. Re1 {[%emt 0:18:36]} f6 {[%emt 0:01:19]} 12. exf6 Nxf6 {[%emt 0:00:15]} 13. Bg2 {[%emt 0:00:58]} Rb8 {[%emt 0:05:12]} 14. Kh1 {[%emt 0:02:08]} a6 {[%emt 0:03:49]} 15. Ng1 {[%emt 0:00:23]} Bd7 {[%emt 0:01:36]} 16. h3 {[%emt 0:00:27]} Qc7 {[%emt 0:00:37]} 17. Nf3 {[%emt 0:02:43]} b5 {[%emt 0:01:54]} 18. Ne5 {[%emt 0:01:30]} Nxe5 {[%emt 0:01:56]} 19. Rxe5 {[%emt 0:02:57]} Nh5 {[%emt 0:03:04]} 20. Rxh5 {[%emt 0:01:35]} gxh5 {[%emt 0:00:44]} 21. Qxh5 Bc6 {[%emt 0:01:17]} 22. Bd2 {[%emt 0:04:28]} Qf7 {[%emt 0:00:20]} 23. Qxf7+ {[%emt 0:03:02]} Kxf7 {[%emt 0:01:22]} 24. Rf1 {[%emt 0:01:33]} Rec8 {[%emt 0:01:08]} 25. f5 {[%emt 0:00:35]} Bxc3 {[%emt 0:02:09]} 26. fxe6+ {[%emt 0:00:49]} Kxe6 {[%emt 0:00:20]} 27. bxc3 {[%emt 0:00:34]} d4 {[%emt 0:00:34]} 28. Re1+ {[%emt 0:00:33]} Kf7 {[%emt 0:01:19]} 29. Be4 {[%emt 0:02:35]} Bxe4+ {[%emt 0:01:18]} 30. Rxe4 {[%emt 0:00:20]} Rb6 {[%emt 0:01:45]} 31. Kg2 {[%emt 0:00:18]} Re6 {[%emt 0:01:09]} 32. Rxe6 {[%emt 0:00:20]} Kxe6 {[%emt 0:00:05]} 33. g4 {[%emt 0:00:16]} Kd5 {[%emt 0:00:30]} 34. h4 {[%emt 0:00:34]} c4 {[%emt 0:00:11]} 35. cxd4 {[%emt 0:02:46]} cxd3 {[%emt 0:00:24]} 36. cxd3 {[%emt 0:00:19]} Rc2 {[%emt 0:00:07]} 37. Kf3 {[%emt 0:00:14]} Rxd2 {[%emt 0:00:05]} 38. g5 {[%emt 0:00:09]} Rxd3+ {[%emt 0:00:07]} 39. Kg4 {[%emt 0:00:55]} Rxd4+ {[%emt 0:00:08]} 40. Kh5 {[%emt 0:00:00]} a5 {[%emt 0:00:00]} 41. a3 {[%emt 0:02:49]} a4 {[%emt 0:00:17]} 42. g6 {[%emt 0:00:07]} hxg6+ {[%emt 0:00:16]} 43. Kxg6 {[%emt 0:00:08]} Rxh4 {[%emt 0:00:10]} 44. Kg5 {[%emt 0:00:16]} Re4 {[%emt 0:00:16]} 45. Kf5 {[%emt 0:00:23]} b4 {[%emt 0:00:17]} 46. axb4 {[%emt 0:00:05]} Rxb4 {[%emt 0:00:13]} 47. Kg5 {[%emt 0:00:09]} Ke5 {[%emt 0:00:20]} 48. Kh5 {[%emt 0:00:13]} Kf6 {[%emt 0:00:09]} 0-1

[Event "EYCC Open-U10 2019"]
[Site "Bratislava"]
[Date "2019.08.10"]
[Round "9.39"]
[White "Gut, Lionel"]
[Black "Klaska, Philipp Leon"]
[Result "1-0"]
[ECO "D32"]
[WhiteElo "1583"]
[BlackElo "1441"]
[Annotator "NA RC"]
[PlyCount "71"]
[EventDate "2019.08.02"]
[EventType "swiss"]
[EventCountry "SVK"]
[SourceTitle "playchess.com"]
[Source "ChessBase"]
[SourceQuality "1"]
[TimeControl "40/5400+30:1800+30"]

1. d4 {[%emt 0:00:00]} d5 {[%emt 0:00:00]} 2. c4 {[%emt 0:00:00]} e6 {[%emt 0:00:00]} 3. Nc3 {[%emt 0:00:15]} c5 {[%emt 0:00:00]} 4. cxd5 {[%emt 0:01:13]} exd5 {[%emt 0:00:00]} 5. Nf3 {[%emt 0:03:50]} Nc6 {[%emt 0:01:07]} 6. e3 {[%emt 0:17:14]} Nf6 {[%emt 0:00:51]} 7. Bb5 {[%emt 0:07:26]} Bd6 {[%emt 0:02:07]} 8. dxc5 {[%emt 0:06:41]} Bxc5 {[%emt 0:00:58]} 9. Nd4 {[%emt 0:05:37]} Qc7 {[%emt 0:04:35]} 10. O-O {[%emt 0:00:11]} O-O {[%emt 0:00:24]} 11. Bd3 {[%emt 0:03:19]} a6 {[%emt 0:07:05]} 12. Nb3 {[%emt 0:03:04]} Ba7 {[%emt 0:04:11]} 13. Ne2 {[%emt 0:12:40]} Bd7 {[%emt 0:09:57]} 14. Bd2 {[%emt 0:00:06]} Rac8 {[%emt 0:03:28]} 15. Rc1 {[%emt 0:02:51]} Bb8 {[%emt 0:08:25]} 16. g3 {[%emt 0:01:56]} Bh3 {[%emt 0:04:09]} 17. Re1 {[%emt 0:00:03]} Qe7 {[%emt 0:03:56]} 18. Bc3 {[%emt 0:06:53]} Ng4 {[%emt 0:08:01]} 19. Nf4 {[%emt 0:04:08]} Bxf4 {[%emt 0:03:41]} 20. exf4 {[%emt 0:00:05]} Qd7 {[%emt 0:04:30]} 21. Nc5 {[%emt 0:01:16]} Qc7 {[%emt 0:06:39]} 22. Bf1 {[%emt 0:00:25]} Bxf1 {[%emt 0:03:10]} 23. Qxg4 {[%emt 0:00:07]} d4 {[%emt 0:04:38]} 24. Bxd4 {[%emt 0:00:09]} Nxd4 {[%emt 0:00:18]} 25. Ne6 {[%emt 0:00:18]} Nxe6 {[%emt 0:02:16]} 26. Rxc7 {[%emt 0:00:05]} Rxc7 {[%emt 0:00:34]} 27. Kxf1 {[%emt 0:00:28]} Rc2 {[%emt 0:00:54]} 28. Re2 {[%emt 0:01:21]} Rc1+ {[%emt 0:02:06]} 29. Kg2 {[%emt 0:01:31]} g6 {[%emt 0:03:06]} 30. f5 {[%emt 0:00:16]} Nc7 {[%emt 0:01:32]} 31. f6 {[%emt 0:00:27]} Ne6 {[%emt 0:00:24]} 32. Rxe6 {[%emt 0:00:48]} fxe6 {[%emt 0:00:35]} 33. Qxe6+ {[%emt 0:00:05]} Rf7 {[%emt 0:00:16]} 34. Qe8+ {[%emt 0:00:53]} Rf8 {[%emt 0:00:08]} 35. f7+ {[%emt 0:00:03]} Kg7 {[%emt 0:00:29]} 36. Qe5+ {[%emt 0:00:06]} 1-0

[Event "EYCC Open-U10 2019"]
[Site "Bratislava"]
[Date "2019.08.10"]
[Round "9.40"]
[White "Arora, Abhiraaj"]
[Black "Olszewski, Antoni"]
[Result "1-0"]
[ECO "B43"]
[WhiteElo "1463"]
[BlackElo "1380"]
[Annotator "NA RC"]
[PlyCount "35"]
[EventDate "2019.08.02"]
[EventType "swiss"]
[EventCountry "SVK"]
[SourceTitle "playchess.com"]
[Source "ChessBase"]
[SourceQuality "1"]
[TimeControl "40/5400+30:1800+30"]

1. e4 {[%emt 0:00:00]} c5 {[%emt 0:00:00]} 2. Nf3 {[%emt 0:00:00]} e6 {[%emt 0:00:21]} 3. d4 {[%emt 0:00:00]} cxd4 {[%emt 0:00:58]} 4. Nxd4 {[%emt 0:00:02]} a6 {[%emt 0:00:36]} 5. Nc3 {[%emt 0:01:31]} b5 {[%emt 0:00:51]} 6. Bf4 {[%emt 0:01:07]} d6 {[%emt 0:01:23]} 7. Bg3 {[%emt 0:04:01]} Bb7 {[%emt 0:01:09]} 8. Be2 {[%emt 0:02:28]} b4 {[%emt 0:02:50]} 9. Na4 {[%emt 0:03:09]} Bxe4 {[%emt 0:01:24]} 10. Bf3 {[%emt 0:00:45]} Bxf3 {[%emt 0:00:44]} 11. Qxf3 {[%emt 0:02:13]} d5 {[%emt 0:01:35]} 12. O-O-O {[%emt 0:14:50]} Bd6 {[%emt 0:04:01]} 13. Rhe1 {[%emt 0:02:35]} Qg5+ {[%emt 0:14:14]} 14. Kb1 {[%emt 0:01:08]} Bxg3 {[%emt 0:04:12]} 15. fxg3 {[%emt 0:02:39]} Qf6 {[%emt 0:02:27]} 16. Qxd5 {[%emt 0:02:44]} Ra7 {[%emt 0:03:39]} 17. Nxe6 {[%emt 0:05:57]} Ne7 {[%emt 0:02:49]} 18. Qd8# {[%emt 0:00:18]} 1-0